bitfinex/quotes_BTCUSD_20250110
["timestamp","ask_amount","ask_price","bid_price","bid_amount"]
[1736541264145,0.210826,94865.0,94861.0,1.5]
[1736541264799,0.210821,94868.0,94861.0,1.5]
[1736541264997,0.210814,94871.0,94861.0,1.5]
[1736541265201,0.00300592,94867.0,94861.0,1.5]
[1736541265416,0.210814,94871.0,94861.0,1.5]
[1736541265633,0.002,94865.0,94861.0,1.5]
[1736541265984,0.210814,94871.0,94861.0,1.5]
[1736541266224,0.00300422,94870.0,94861.0,1.5]
[1736541266433,0.210819,94868.0,94861.0,1.5]
[1736541266635,0.210827,94865.0,94861.0,1.5]
[1736541267103,0.00301083,94864.0,94862.0,0.0496]
[1736541267355,0.00301083,94864.0,94863.0,0.0758]
[1736541267562,0.005,94871.0,94864.0,0.210828]
[1736541267563,0.001,94870.0,94864.0,0.210828]
[1736541267734,0.001,94870.0,94869.0,0.210817]
[1736541267970,0.001,94870.0,94869.0,0.43801676]
[1736541268112,0.001,94870.0,94869.0,0.56764899]
[1736541268317,0.001,94870.0,94869.0,1.6229]
[1736541268523,0.001,94870.0,94864.0,0.210827]
[1736541268908,0.001,94870.0,94857.0,0.047]
[1736541269125,0.002,94870.0,94869.0,0.003]
[1736541269326,0.001,94870.0,94869.0,0.003]
[1736541269550,0.001,94870.0,94852.0,0.0761]
[1736541269551,0.023,94869.0,94862.0,0.001]
[1736541269773,0.14277966,94870.0,94862.0,0.001]
[1736541269774,0.0808,94865.0,94862.0,0.001]
[1736541270004,0.023,94862.0,94838.0,0.0761]
[1736541270217,0.383839,94859.0,94828.0,8.54e-05]
[1736541270433,0.48813876,94859.0,94828.0,8.54e-05]
[1736541270649,0.49109644,94859.0,94835.0,0.210891]
[1736541271070,0.49109644,94859.0,94839.0,0.210882]
[1736541271271,0.46809644,94859.0,94842.0,0.210875]
[1736541271388,0.50951752,94859.0,94847.0,0.2109504]
[1736541272171,0.17236383,94859.0,94847.0,0.2109504]
[1736541272377,0.17236383,94859.0,94847.0,8.54e-05]
[1736541272582,0.16836383,94859.0,94847.0,8.54e-05]
[1736541272758,0.17736383,94859.0,94847.0,8.54e-05]
[1736541273018,0.28166359,94859.0,94847.0,8.54e-05]
[1736541273185,0.26766359,94859.0,94847.0,8.54e-05]
[1736541273386,0.26966359,94859.0,94847.0,8.54e-05]
[1736541273547,0.27766359,94859.0,94858.0,0.0010854]
[1736541273777,0.81136166,94859.0,94858.0,0.0010854]
[1736541274019,0.80936166,94859.0,94858.0,0.0010854]
[1736541274226,0.81236166,94859.0,94858.0,0.0010854]
[1736541274429,0.5580619,94859.0,94858.0,0.0010854]
[1736541274671,0.37048802,94859.0,94858.0,0.0010854]
[1736541274850,0.36248802,94859.0,94858.0,8.54e-05]
[1736541275048,0.0997718,94859.0,94858.0,8.54e-05]
[1736541275259,0.1087718,94859.0,94858.0,8.54e-05]
[1736541275460,0.0967718,94859.0,94858.0,8.54e-05]
[1736541275660,0.00295768,94859.0,94858.0,8.54e-05]
[1736541275889,0.01395768,94859.0,94858.0,8.54e-05]
[1736541276210,0.003,94859.0,94858.0,8.54e-05]
[1736541276421,0.007,94859.0,94858.0,8.54e-05]
[1736541276929,0.001,94859.0,94858.0,8.54e-05]
[1736541277683,0.21081,94872.0,94859.0,0.210839]
[1736541277901,0.21081,94872.0,94859.0,0.421678]
[1736541278085,0.00299063,94871.0,94859.0,0.52597776]
[1736541278881,0.00299063,94871.0,94862.0,0.21083]
[1736541279469,0.009,94871.0,94862.0,0.21083]
[1736541279917,0.09381412,94877.0,94869.0,0.210814]
[1736541280125,0.09381412,94877.0,94874.0,0.210805]
[1736541280302,0.00301016,94876.0,94874.0,0.42161]
[1736541280481,0.00301016,94876.0,94875.0,1.5]
[1736541280686,0.09381412,94885.0,94877.0,0.210799]
[1736541280894,0.00302343,94884.0,94878.0,0.210796]
[1736541281280,0.00302343,94884.0,94879.0,1.5]
[1736541281524,0.09381412,94885.0,94879.0,1.5]
[1736541281729,0.09381412,94885.0,94872.0,0.0756]
[1736541281730,0.09381412,94885.0,94882.0,0.421574]
[1736541281929,0.00301762,94884.0,94882.0,0.210787]
[1736541282196,0.09381412,94887.0,94883.0,1.5]
[1736541282406,0.09381412,94887.0,94884.0,0.421566]
[1736541283148,0.01032306,94898.0,94888.0,0.210773]
[1736541283355,0.0001708,94899.0,94891.0,0.210766]
[1736541283528,0.00304403,94898.0,94888.0,0.210773]
[1736541283989,0.210754,94897.0,94888.0,0.210773]
[1736541284204,0.00304077,94896.0,94884.0,0.210783]
[1736541284611,0.00304077,94896.0,94883.0,1.5]
[1736541284821,0.210797,94878.0,94863.0,0.0787]
[1736541285035,0.210797,94878.0,94868.0,0.210819]
[1736541285233,0.210801,94876.0,94864.0,0.210827]
[1736541285684,0.00295082,94875.0,94864.0,0.210827]
[1736541285963,0.00295082,94875.0,94866.0,0.210823]
[1736541286159,0.210797,94878.0,94866.0,0.210823]
[1736541286363,0.00295082,94877.0,94866.0,0.210823]
[1736541286592,0.002,94876.0,94866.0,0.210823]
[1736541286810,0.00302039,94875.0,94867.0,1.5]
[1736541286993,0.007,94875.0,94867.0,1.5]
[1736541287696,0.00301873,94874.0,94868.0,0.210819]
[1736541288132,0.00301873,94874.0,94871.0,0.21081]
[1736541288345,0.00301873,94874.0,94872.0,1.5]
[1736541288568,0.09381412,94880.0,94877.0,0.210799]
[1736541288775,0.00301367,94879.0,94868.0,0.0421642]
[1736541288953,0.00301367,94879.0,94858.0,8.54e-05]
[1736541288954,0.001,94875.0,94873.0,0.210808]
[1736541289246,0.001,94875.0,94874.0,1.5]
[1736541289444,0.0009801,94887.0,94875.0,0.210803]
[1736541289618,0.003,94880.0,94875.0,0.210803]
[1736541289829,0.012,94880.0,94879.0,0.210794]
[1736541290029,0.012,94880.0,94879.0,0.31509376]
[1736541290264,0.09381412,94889.0,94886.0,0.210779]
[1736541290482,0.09381412,94889.0,94886.0,0.421558]
[1736541290691,0.00302454,94888.0,94886.0,0.421558]
[1736541290899,0.09381412,94889.0,94886.0,0.421558]
[1736541291074,0.0009925,94898.0,94887.0,0.210777]
[1736541291276,0.0009925,94898.0,94894.0,0.210759]
[1736541291479,0.00303947,94897.0,94894.0,0.210759]
[1736541291702,0.0001708,94899.0,94896.0,0.210757]
[1736541291881,0.0001708,94899.0,94896.0,0.421514]
[1736541292408,0.009,94898.0,94896.0,0.421514]
[1736541292627,0.0001708,94899.0,94896.0,0.48687066]
[1736541292847,0.0001708,94899.0,94896.0,0.421514]
[1736541293431,0.0041708,94899.0,94896.0,0.421514]
[1736541294137,0.0041708,94899.0,94898.0,0.288952]
[1736541294379,0.0041708,94899.0,94898.0,0.43895176]
[1736541295265,0.0001708,94899.0,94898.0,0.43895176]
[1736541295408,0.0001708,94899.0,94898.0,0.52819359]
[1736541295984,0.0001708,94899.0,94898.0,2.02819359]
[1736541299011,0.0001708,94899.0,94898.0,1.788952]
[1736541299147,0.0001708,94899.0,94898.0,1.710752]
[1736541300244,0.0001708,94899.0,94898.0,1.81505176]
[1736541300590,0.0011708,94899.0,94898.0,1.89355176]
[1736541301198,0.0011708,94899.0,94898.0,2.28975176]
[1736541301372,0.0011708,94899.0,94898.0,2.39405152]
[1736541301600,0.0011708,94899.0,94898.0,2.29405152]
[1736541301782,0.0011708,94899.0,94898.0,2.04405152]
[1736541302010,0.0011708,94899.0,94898.0,1.89355176]
[1736541302425,0.0001708,94899.0,94898.0,2.28945176]
[1736541302834,0.0011708,94899.0,94898.0,2.29045176]
[1736541303254,0.0001708,94899.0,94898.0,2.28945176]
[1736541304275,0.0001708,94899.0,94898.0,2.29145176]
[1736541304483,0.0001706,94915.0,94904.0,0.560739]
[1736541304692,8e-07,94905.0,94904.0,0.81843876]
[1736541304907,8e-07,94905.0,94904.0,0.82615876]
[1736541305347,8e-07,94905.0,94904.0,2.42855695]
[1736541306114,8e-07,94905.0,94904.0,2.4388805]
[1736541306323,0.0010008,94905.0,94904.0,2.47874411]
[1736541306622,0.0020008,94905.0,94904.0,2.47974411]
[1736541307025,8e-07,94905.0,94904.0,2.47974411]
[1736541308109,0.0001706,94915.0,94914.0,0.686717]
[1736541308311,0.0001706,94915.0,94914.0,0.79101676]
[1736541308513,0.0001706,94915.0,94914.0,0.89531652]
[1736541308717,6e-07,94915.0,94914.0,2.41831652]
[1736541309477,6e-07,94915.0,94914.0,2.42331652]
[1736541309767,0.000171,94921.0,94920.0,0.643503]
[1736541309905,0.000171,94921.0,94920.0,0.74780276]
[1736541310105,0.000171,94921.0,94920.0,0.85210252]
[1736541310320,0.000171,94921.0,94920.0,2.35210252]
[1736541310729,1e-06,94921.0,94920.0,2.39740252]
[1736541310959,2e-07,94928.0,94927.0,0.4558]
[1736541311160,2e-07,94928.0,94927.0,0.56781976]
[1736541311403,2e-07,94928.0,94927.0,0.59868337]
[1736541311620,2e-07,94928.0,94927.0,2.28637137]
[1736541312048,2e-07,94928.0,94927.0,2.30937137]
[1736541312197,2e-07,94928.0,94927.0,2.31337137]
[1736541312404,0.0010002,94928.0,94927.0,2.29737137]
[1736541313221,0.0010002,94928.0,94927.0,2.30795978]
[1736541313442,2e-07,94928.0,94927.0,2.33095978]
[1736541313795,2e-07,94928.0,94927.0,2.37765978]
[1736541314320,2e-07,94928.0,94927.0,2.35061978]
[1736541314734,0.0001708,94943.0,94936.0,0.460668]
[1736541314936,0.0001708,94943.0,94936.0,0.64210166]
[1736541315990,0.0001708,94943.0,94936.0,2.14410166]
[1736541316442,0.0001708,94943.0,94936.0,1.99410166]
[1736541316668,0.0001708,94943.0,94936.0,1.712668]
[1736541316864,0.0001708,94943.0,94936.0,1.502]
[1736541317247,0.0001708,94943.0,94936.0,1.5]
[1736541317716,0.0001708,94943.0,94936.0,1.501]
[1736541318142,0.0001708,94943.0,94936.0,1.60829976]
[1736541318492,0.0021708,94937.0,94936.0,1.60829976]
[1736541318704,0.0021708,94937.0,94936.0,1.60429976]
[1736541318924,0.0041708,94937.0,94936.0,1.60429976]
[1736541319324,0.0061708,94937.0,94936.0,1.60429976]
[1736541319523,0.0061708,94937.0,94936.0,1.70859952]
[1736541319777,0.0021708,94937.0,94936.0,1.70859952]
[1736541320353,0.0021708,94937.0,94936.0,0.20859952]
[1736541320594,0.0001708,94937.0,94936.0,0.20859952]
[1736541320842,0.0001708,94937.0,94936.0,1.70859952]
[1736541321125,0.0001708,94937.0,94936.0,1.71913521]
[1736541321343,0.0041708,94937.0,94936.0,1.71913521]
[1736541321543,0.0001708,94937.0,94936.0,1.71913521]
[1736541321841,0.0011708,94937.0,94936.0,1.71913521]
[1736541322116,0.0041708,94937.0,94936.0,1.71913521]
[1736541322324,0.0001708,94937.0,94936.0,1.71913521]
[1736541325473,0.0001708,94937.0,94936.0,1.72013521]
[1736541325820,0.0001708,94937.0,94936.0,1.72113521]
[1736541326908,0.0001708,94943.0,94941.0,0.210657]
[1736541327120,0.0001708,94943.0,94941.0,0.77862037]
[1736541327323,8e-07,94942.0,94941.0,0.81136154]
[1736541327497,8e-07,94942.0,94941.0,2.41237406]
[1736541328464,8e-07,94942.0,94941.0,2.41737406]
[1736541328878,0.0001708,94943.0,94942.0,0.35]
[1736541329034,0.0001708,94943.0,94942.0,0.59134069]
[1736541329619,0.0001708,94943.0,94942.0,2.09134069]
[1736541330214,0.0001708,94943.0,94942.0,2.11265066]
[1736541330756,0.0001708,94943.0,94942.0,2.11665066]
[1736541331092,8e-07,94943.0,94942.0,2.11665066]
[1736541331298,8e-07,94943.0,94942.0,2.13965066]
[1736541331673,8e-07,94943.0,94942.0,2.14765066]
[1736541333410,0.0001708,94956.0,94955.0,0.210626]
[1736541333577,0.0001708,94956.0,94954.0,0.210627]
[1736541334038,0.0001708,94956.0,94948.0,0.21064]
[1736541334243,0.210626,94955.0,94942.0,1.512]
[1736541334422,0.0001708,94956.0,94944.0,0.21065]
[1736541334680,0.0001708,94956.0,94955.0,0.001]
[1736541334894,0.0041708,94956.0,94955.0,0.001]
[1736541335104,0.0082751,94956.0,94955.0,0.001]
[1736541335286,0.0082751,94956.0,94944.0,0.21065]
[1736541335287,0.0082751,94956.0,94944.0,0.210649]
[1736541335432,0.211626,94955.0,94945.0,0.10429976]
[1736541335645,0.076,94951.0,94942.0,1.5]
[1736541335965,0.076,94951.0,94943.0,0.210652]
[1736541336161,0.076,94951.0,94942.0,1.5]
[1736541337335,0.076,94951.0,94947.0,0.210641]
[1736541337872,0.0001708,94956.0,94953.0,0.210629]
[1736541338184,0.007,94951.0,94949.0,0.210637]
[1736541338392,0.007,94951.0,94950.0,0.0421289]
[1736541338568,0.004,94951.0,94949.0,0.210637]
[1736541338774,0.004,94951.0,94947.0,0.210642]
[1736541339096,0.007,94951.0,94947.0,0.210642]
[1736541339294,0.012,94951.0,94947.0,0.001]
[1736541339547,0.210639,94949.0,94948.0,1.5]
[1736541340066,0.15,94943.0,94924.0,0.210693]
[1736541340415,0.00409561,94942.0,94933.0,1.5]
[1736541340615,0.21474961,94942.0,94933.0,1.5]
[1736541341639,0.22174961,94942.0,94933.0,1.5]
[1736541343659,0.22174961,94942.0,94927.0,0.210686]
[1736541344074,0.22174961,94942.0,94941.0,1.60101252]
[1736541344459,0.217654,94942.0,94941.0,1.60101252]
[1736541347598,0.217654,94942.0,94941.0,0.10101252]
[1736541347805,0.210682,94930.0,94920.0,0.210703]
[1736541348186,0.00407639,94929.0,94928.0,1.5]
[1736541348387,0.210682,94930.0,94928.0,1.5]
[1736541348683,0.210676,94933.0,94928.0,1.5]
[1736541349089,0.00407521,94932.0,94928.0,1.5]
[1736541350063,0.210679,94931.0,94928.0,1.5]
[1736541350360,0.21475093,94931.0,94928.0,1.5]
[1736541350788,0.42543093,94931.0,94928.0,1.5]
[1736541350973,0.42543093,94931.0,94916.0,0.210712]
[1736541350974,0.210695,94924.0,94916.0,0.210712]
[1736541351380,0.210683,94929.0,94921.0,1.5]
[1736541351587,0.004059,94923.0,94921.0,1.5]
[1736541352037,0.210683,94929.0,94921.0,1.5]
[1736541352247,0.00405736,94922.0,94921.0,1.5]
[1736541352450,0.007,94924.0,94921.0,1.5]
[1736541352662,0.0040574,94922.0,94921.0,1.5]
[1736541352864,0.210683,94929.0,94921.0,1.5]
[1736541353065,0.0040574,94922.0,94921.0,1.5]
[1736541353262,0.002,94923.0,94921.0,1.5]
[1736541354084,0.210699,94922.0,94921.0,1.5]
[1736541354311,0.21475388,94922.0,94921.0,1.5]
[1736541354890,0.00405488,94922.0,94921.0,1.5]
[1736541355092,0.00505488,94922.0,94921.0,1.5]
[1736541355344,0.001,94922.0,94921.0,1.710701]
[1736541355687,0.005,94922.0,94921.0,1.710701]
[1736541356129,0.004,94922.0,94921.0,1.710701]
[1736541356339,0.004,94922.0,94921.0,1.5]
[1736541356747,0.005,94922.0,94921.0,1.5]
[1736541356915,0.001,94922.0,94921.0,1.5]
[1736541357960,0.421391,94924.0,94921.0,1.5]
[1736541358370,0.001,94922.0,94921.0,1.5]
[1736541358568,0.005,94922.0,94921.0,1.5]
[1736541358793,0.00805113,94922.0,94921.0,1.5]
[1736541359381,0.00405113,94922.0,94921.0,1.5]
[1736541359621,0.22141959,94924.0,94921.0,1.5]
[1736541359778,0.00405088,94922.0,94921.0,1.5]
[1736541359975,0.43211559,94924.0,94921.0,1.5]
[1736541360221,0.00505088,94922.0,94921.0,1.5]
[1736541360366,0.001,94922.0,94921.0,1.5]
[1736541360566,0.00505088,94922.0,94921.0,1.8]
[1736541360965,0.00505088,94922.0,94921.0,0.3]
[1736541361164,0.18795064,94922.0,94921.0,0.3]
[1736541361368,0.33695064,94922.0,94921.0,0.3]
[1736541361979,0.36395064,94922.0,94921.0,0.3]
[1736541362591,0.36495064,94922.0,94921.0,0.3]
[1736541362843,0.36095064,94922.0,94921.0,0.3]
[1736541363071,0.4642504,94922.0,94921.0,0.3]
[1736541363243,0.4732504,94922.0,94921.0,0.301]
[1736541363402,0.4772504,94922.0,94921.0,0.301]
[1736541363599,0.37295064,94922.0,94921.0,0.301]
[1736541364002,0.57295064,94922.0,94921.0,0.301]
[1736541364225,0.61905064,94922.0,94921.0,0.301]
[1736541364846,0.60605064,94922.0,94921.0,0.3]
[1736541365050,0.61105064,94922.0,94921.0,0.01363019]
[1736541365260,0.3302,94905.0,94903.0,8.53e-05]
[1736541365462,0.45497976,94905.0,94903.0,8.53e-05]
[1736541365663,0.45900923,94905.0,94903.0,8.53e-05]
[1736541366365,0.45132923,94905.0,94903.0,8.53e-05]
[1736541366554,0.45900923,94905.0,94903.0,8.53e-05]
[1736541366726,0.53944538,94905.0,94904.0,0.0010853]
[1736541367514,0.310768,94891.0,94890.0,8.53e-05]
[1736541367868,0.71348301,94891.0,94890.0,8.53e-05]
[1736541368073,0.81348301,94891.0,94890.0,8.53e-05]
[1736541368901,0.639483,94884.0,94858.0,8.54e-05]
[1736541369108,0.210839,94859.0,94858.0,8.54e-05]
[1736541369315,0.34581876,94859.0,94858.0,8.54e-05]
[1736541369532,0.34975503,94859.0,94858.0,8.54e-05]
[1736541370978,0.35107503,94859.0,94858.0,8.54e-05]
[1736541371184,0.33575503,94859.0,94858.0,8.54e-05]
[1736541371387,0.40019118,94859.0,94858.0,8.54e-05]
[1736541371997,0.42719118,94859.0,94858.0,8.54e-05]
[1736541372432,0.39251118,94859.0,94858.0,8.54e-05]
[1736541372640,0.01423453,94859.0,94858.0,8.54e-05]
[1736541372847,0.01693627,94859.0,94858.0,1.5000854]
[1736541373049,0.10829976,94859.0,94858.0,1.5000854]
[1736541373252,0.25828629,94859.0,94858.0,1.5000854]
[1736541373465,0.26728629,94859.0,94858.0,1.5000854]
[1736541373642,0.33132148,94859.0,94858.0,1.5000854]
[1736541373995,0.33932148,94859.0,94858.0,1.5000854]
[1736541374414,0.33132148,94859.0,94858.0,1.5000854]
[1736541374632,0.34032148,94859.0,94858.0,8.54e-05]
[1736541374831,0.26728629,94859.0,94858.0,8.54e-05]
[1736541375291,0.29428629,94859.0,94858.0,8.54e-05]
[1736541375668,0.29028629,94859.0,94858.0,8.54e-05]
[1736541376070,0.29428629,94859.0,94858.0,8.54e-05]
[1736541380657,0.30196629,94859.0,94858.0,8.54e-05]
[1736541380887,0.40626605,94859.0,94858.0,8.54e-05]
[1736541381904,0.16698653,94859.0,94858.0,8.54e-05]
[1736541382132,0.01698653,94859.0,94858.0,8.54e-05]
[1736541383658,0.013,94859.0,94858.0,8.54e-05]
[1736541385016,0.004,94859.0,94858.0,8.54e-05]
[1736541385217,0.210833,94862.0,94858.0,8.54e-05]
[1736541385417,0.210837,94860.0,94858.0,8.54e-05]
[1736541385623,0.00367157,94859.0,94858.0,8.54e-05]
[1736541385822,0.00767157,94859.0,94858.0,8.54e-05]
[1736541386470,0.01067157,94859.0,94858.0,8.54e-05]
[1736541386720,0.00767157,94859.0,94858.0,8.54e-05]
[1736541387239,0.01667157,94859.0,94858.0,0.0010854]
[1736541387472,0.004,94859.0,94858.0,8.54e-05]
[1736541387676,0.210818,94869.0,94858.0,8.54e-05]
[1736541387806,0.008,94859.0,94858.0,1.5010854]
[1736541388007,0.01067519,94875.0,94860.0,0.210837]
[1736541388232,0.00366112,94874.0,94861.0,0.210834]
[1736541388593,0.21446612,94874.0,94862.0,1.5]
[1736541388996,0.210816,94870.0,94862.0,1.5]
[1736541389203,0.00368087,94869.0,94862.0,1.5]
[1736541389633,0.210821,94867.0,94862.0,1.5]
[1736541389839,0.00368123,94866.0,94862.0,1.5]
[1736541390050,0.210818,94869.0,94862.0,1.5]
[1736541390683,0.210818,94869.0,94859.0,0.0794]
[1736541390993,0.002,94867.0,94858.0,8.54e-05]
[1736541391198,0.210834,94862.0,94858.0,8.54e-05]
[1736541391749,0.210837,94860.0,94858.0,8.54e-05]
[1736541392380,0.00368034,94859.0,94858.0,8.54e-05]
[1736541393191,0.00768,94870.0,94858.0,8.54e-05]
[1736541393357,0.00768,94870.0,94865.0,0.0482]
[1736541393962,0.00367196,94869.0,94865.0,0.0482]
[1736541394525,0.008,94870.0,94865.0,0.0482]
[1736541394697,0.00367443,94868.0,94865.0,0.0482]
[1736541394967,0.008,94870.0,94865.0,0.0482]
[1736541395121,0.00367443,94867.0,94865.0,0.0482]
[1736541395322,0.210808,94873.0,94865.0,0.0482]
[1736541395553,0.00367443,94866.0,94865.0,0.0482]
[1736541395891,0.007,94869.0,94865.0,0.0482]
[1736541396168,0.00367443,94868.0,94866.0,1.5]
[1736541397341,0.001,94869.0,94866.0,1.5]
[1736541397539,0.00367361,94867.0,94866.0,1.5]
[1736541397743,0.001,94869.0,94866.0,1.5]
[1736541398085,0.006,94868.0,94866.0,1.5]
[1736541398290,0.00367196,94867.0,94866.0,1.5]
[1736541398444,0.001,94869.0,94866.0,1.5]
[1736541398778,0.00367799,94868.0,94866.0,1.5]
[1736541399419,0.00467799,94868.0,94866.0,1.5]
[1736541399623,0.00467799,94868.0,94859.0,0.0796]
[1736541399857,0.421666,94862.0,94859.0,0.0796]
[1736541400065,0.421666,94862.0,94858.0,8.54e-05]
[1736541400066,0.210837,94860.0,94858.0,8.54e-05]
[1736541400603,0.00367789,94859.0,94858.0,8.54e-05]
[1736541402430,0.28797765,94859.0,94858.0,8.54e-05]
[1736541402631,0.43261042,94859.0,94858.0,8.54e-05]
[1736541403151,0.43461042,94859.0,94858.0,8.54e-05]
[1736541403413,0.43261042,94859.0,94858.0,8.54e-05]
[1736541403916,0.43761042,94859.0,94858.0,8.54e-05]
[1736541404160,0.44561042,94859.0,94858.0,8.54e-05]
[1736541404388,0.43761042,94859.0,94858.0,8.54e-05]
[1736541404749,0.44661042,94859.0,94858.0,8.54e-05]
[1736541404953,0.43761042,94859.0,94858.0,8.54e-05]
[1736541405358,0.44161042,94859.0,94858.0,8.54e-05]
[1736541405599,0.43261042,94859.0,94858.0,8.54e-05]
[1736541405899,0.43761042,94859.0,94858.0,8.54e-05]
[1736541406108,0.44661042,94859.0,94858.0,8.54e-05]
[1736541406277,0.44161042,94859.0,94858.0,8.54e-05]
[1736541406706,0.27965765,94859.0,94858.0,8.54e-05]
[1736541409081,0.30265765,94859.0,94858.0,8.54e-05]
[1736541409851,0.83513537,94859.0,94858.0,8.54e-05]
[1736541410675,0.64845265,94859.0,94858.0,8.54e-05]
[1736541411367,0.88283014,94859.0,94858.0,8.54e-05]
[1736541411576,1.0871299,94859.0,94858.0,8.54e-05]
[1736541412235,0.85275241,94859.0,94858.0,8.54e-05]
[1736541413506,0.75275241,94859.0,94858.0,8.54e-05]
[1736541413714,0.98726749,94859.0,94858.0,8.54e-05]
[1736541415269,0.75275241,94859.0,94858.0,8.54e-05]
[1736541420760,0.61777265,94859.0,94858.0,8.54e-05]
[1736541420959,0.62545265,94859.0,94858.0,8.54e-05]
[1736541421378,0.42051691,94859.0,94858.0,8.54e-05]
[1736541421783,0.30853715,94859.0,94858.0,8.54e-05]
[1736541422661,0.16767789,94859.0,94858.0,8.54e-05]
[1736541422894,0.2696341,94859.0,94858.0,8.54e-05]
[1736541423479,0.01767789,94859.0,94858.0,8.54e-05]
[1736541424475,0.01767789,94859.0,94858.0,0.0751854]
[1736541424880,0.01767789,94859.0,94858.0,1.5751854]
[1736541425083,0.01267789,94859.0,94858.0,1.5751854]
[1736541425336,0.012,94859.0,94858.0,1.5751854]
[1736541425719,0.09390695,94879.0,94858.0,1.5751854]
[1736541425898,0.00366016,94878.0,94860.0,0.0819]
[1736541426100,0.30470295,94879.0,94865.0,0.210823]
[1736541426306,0.00366024,94878.0,94865.0,0.210823]
[1736541426500,0.00366024,94878.0,94865.0,0.421648]
[1736541426702,0.00366024,94878.0,94866.0,0.0819]
[1736541427127,0.00366024,94878.0,94867.0,0.210821]
[1736541427493,0.00366024,94878.0,94870.0,0.210813]
[1736541427932,0.00366024,94878.0,94868.0,0.210819]
[1736541428414,0.00666024,94878.0,94868.0,0.210819]
[1736541428656,0.01566024,94878.0,94869.0,0.0503543]
[1736541428851,0.00666024,94878.0,94868.0,0.210819]
[1736541429060,0.00366024,94878.0,94868.0,0.210819]
[1736541429261,0.01466024,94878.0,94868.0,0.210819]
[1736541429665,0.00666024,94878.0,94866.0,0.0819]
[1736541429894,0.01466024,94878.0,94866.0,0.0819]
[1736541430016,0.011,94878.0,94872.0,0.210808]
[1736541430254,0.003,94878.0,94872.0,0.210808]
[1736541430459,0.011,94878.0,94872.0,0.210808]
[1736541430658,0.011,94878.0,94869.0,0.210816]
[1736541430864,0.011,94878.0,94877.0,0.0823]
[1736541431351,0.008,94878.0,94877.0,0.0823]
[1736541431557,0.011,94878.0,94877.0,1.6316]
[1736541431748,0.011,94878.0,94877.0,1.71830148]
[1736541432039,0.008,94878.0,94877.0,1.6316]
[1736541432435,0.008,94878.0,94877.0,1.6326]
[1736541432827,0.008,94878.0,94877.0,1.6316]
[1736541433205,0.15,94895.0,94877.0,1.6326]
[1736541433437,0.15,94893.0,94878.0,0.31509676]
[1736541434084,0.15,94893.0,94879.0,1.5]
[1736541434257,0.00367872,94892.0,94880.0,0.210792]
[1736541434461,0.15,94893.0,94880.0,0.210792]
[1736541434860,0.00367872,94892.0,94881.0,1.5]
[1736541435246,0.15,94893.0,94881.0,1.5]
[1736541435622,0.152,94893.0,94881.0,1.5]
[1736541436095,0.210765,94892.0,94881.0,1.5]
[1736541436677,0.00367791,94891.0,94881.0,1.5]
[1736541436874,0.00367791,94891.0,94882.0,0.210788]
[1736541437187,0.01,94893.0,94882.0,0.210788]
[1736541437383,0.01,94893.0,94878.0,0.210797]
[1736541437539,0.00367872,94892.0,94883.0,1.5]
[1736541437740,0.01,94893.0,94883.0,1.5]
[1736541438088,0.002,94893.0,94883.0,1.710783]
[1736541438289,0.22252938,94896.0,94883.0,1.710783]
[1736541438511,0.212766,94892.0,94883.0,1.5]
[1736541438715,0.002,94892.0,94883.0,1.5]
[1736541438923,0.15,94890.0,94859.0,0.338139]
[1736541439221,0.210801,94876.0,94860.0,0.210837]
[1736541439427,0.210777,94887.0,94862.0,0.08]
[1736541439656,0.0009939,94890.0,94878.0,0.0473]
[1736541439863,0.0009939,94890.0,94886.0,0.210779]
[1736541440065,0.10468333,94896.0,94883.0,0.210785]
[1736541440298,0.014,94890.0,94887.0,1.5]
[1736541440761,0.005,94890.0,94887.0,1.5]
[1736541440968,0.011,94890.0,94887.0,1.5]
[1736541441171,0.005,94890.0,94887.0,1.5]
[1736541441384,0.005,94890.0,94878.0,0.0473]
[1736541441385,0.25450224,94889.0,94878.0,0.0473]
[1736541441596,0.15,94886.0,94862.0,0.0792]
[1736541441833,0.006,94890.0,94858.0,0.0467854]
[1736541441834,0.173,94882.0,94858.0,8.54e-05]
[1736541442054,0.210839,94859.0,94858.0,8.54e-05]
[1736541442259,0.4030064,94859.0,94858.0,8.54e-05]
[1736541442657,0.50730616,94859.0,94858.0,8.54e-05]
[1736541442799,0.46371265,94859.0,94858.0,8.54e-05]
[1736541444501,0.47271265,94859.0,94858.0,8.54e-05]
[1736541444722,0.48671265,94859.0,94858.0,8.54e-05]
[1736541444934,0.48971265,94859.0,94858.0,8.54e-05]
[1736541445507,0.48671265,94859.0,94858.0,8.54e-05]
[1736541445708,0.50304819,94859.0,94858.0,8.54e-05]
[1736541445951,0.60734795,94859.0,94858.0,8.54e-05]
[1736541446154,0.61634795,94859.0,94858.0,8.54e-05]
[1736541446358,0.61034795,94859.0,94858.0,8.54e-05]
[1736541446567,0.60734795,94859.0,94858.0,8.54e-05]
[1736541446765,0.61634795,94859.0,94858.0,8.54e-05]
[1736541447975,0.81634795,94859.0,94858.0,8.54e-05]
[1736541448190,0.210863,94848.0,94847.0,8.54e-05]
[1736541448397,0.48816276,94848.0,94847.0,8.54e-05]
[1736541449202,0.49181702,94848.0,94847.0,8.54e-05]
[1736541449579,0.50081702,94848.0,94847.0,8.54e-05]
[1736541450592,0.50849702,94848.0,94847.0,8.54e-05]
[1736541451137,0.50081702,94848.0,94847.0,8.54e-05]
[1736541451286,0.62156305,94848.0,94847.0,8.54e-05]
[1736541451838,0.38419332,94848.0,94847.0,8.54e-05]
[1736541452040,0.38819332,94848.0,94847.0,8.54e-05]
[1736541452462,0.38819332,94848.0,94847.0,1.5000854]
[1736541452885,0.49249308,94848.0,94847.0,1.5000854]
[1736541453314,0.51549308,94848.0,94847.0,8.54e-05]
[1736541453606,0.60998079,94848.0,94847.0,8.54e-05]
[1736541455295,0.58698079,94848.0,94847.0,8.54e-05]
[1736541455500,0.59466079,94848.0,94847.0,8.54e-05]
[1736541456850,0.58566079,94848.0,94847.0,8.54e-05]
[1736541457083,0.58166079,94848.0,94847.0,8.54e-05]
[1736541457284,0.59066079,94848.0,94847.0,8.54e-05]
[1736541457509,0.48717308,94848.0,94847.0,8.54e-05]
[1736541458091,0.49617308,94848.0,94847.0,8.54e-05]